bitfinex/quotes_BTCUSD_20210402
["timestamp","ask_amount","ask_price","bid_price","bid_amount"]
[1617322653474,0.22,58798.0,58787.0,0.00296607]
[1617322653475,0.388991,58795.0,58787.0,0.00296607]
[1617322653661,0.52383,58788.0,58787.0,0.00296607]
[1617322653860,2.022821,58788.0,58787.0,0.00296607]
[1617322654061,0.912821,58788.0,58787.0,0.00296607]
[1617322654263,1.092821,58788.0,58783.0,0.00296272]
[1617322654460,0.29170498,58787.0,58783.0,0.00296272]
[1617322654659,0.29170498,58787.0,58782.0,0.00295951]
[1617322654857,0.145,58786.0,58782.0,0.00295951]
[1617322655063,0.145,58786.0,58780.0,0.00295837]
[1617322655258,0.52383,58788.0,58781.0,0.00295829]
[1617322655467,0.52383,58788.0,58780.0,0.00295846]
[1617322655468,0.68069598,58787.0,58780.0,0.00295846]
[1617322655868,0.84069598,58787.0,58778.0,0.00295959]
[1617322656066,0.84069598,58787.0,58776.0,0.0197306]
[1617322656067,0.22,58786.0,58777.0,0.0029605]
[1617322656266,0.22,58786.0,58776.0,0.00296057]
[1617322656467,0.22,58786.0,58777.0,0.00296089]
[1617322656667,0.37594,58788.0,58777.0,0.00296089]
[1617322656867,0.17,58785.0,58777.0,0.00296089]
[1617322657068,0.29170498,58787.0,58770.0,0.00337754]
[1617322657265,0.37594,58788.0,58771.0,0.388991]
[1617322657465,1.02741255,58787.0,58771.0,0.388991]
[1617322657663,0.15,58786.0,58771.0,0.388991]
[1617322659083,0.44170498,58786.0,58771.0,0.388991]
[1617322659283,0.15,58786.0,58771.0,0.65328343]
[1617322659483,0.255277,58787.0,58771.0,0.388991]
[1617322659883,0.29170498,58786.0,58771.0,0.388991]
[1617322660287,0.29170498,58786.0,58770.0,0.0003403]
[1617322660903,0.164,58784.0,58770.0,0.0003403]
[1617322661101,0.41929,58784.0,58770.0,0.0003403]
[1617322661302,0.225,58783.0,58770.0,0.0003403]
[1617322662703,0.255316,58778.0,58770.0,0.0003403]
[1617322663336,0.468056,58786.0,58770.0,0.0003403]
[1617322663536,0.002,58785.0,58770.0,0.0003403]
[1617322663736,0.29370498,58785.0,58770.0,0.0003403]
[1617322664135,0.17,58784.0,58770.0,0.0003403]
[1617322664741,0.255293,58783.0,58770.0,0.0003403]
[1617322665138,0.415293,58783.0,58770.0,0.0003403]
[1617322665738,0.255306,58780.0,58770.0,0.0003403]
[1617322665962,0.29170498,58779.0,58770.0,0.0003403]
[1617322666158,0.145,58778.0,58770.0,0.0003403]
[1617322666360,0.29170498,58779.0,58770.0,0.0003403]
[1617322668006,0.388991,58778.0,58770.0,0.0003403]
[1617322668219,0.345,58777.0,58770.0,0.0003403]
[1617322668410,2.338991,58771.0,58770.0,0.0003403]
[1617322669008,2.507991,58771.0,58770.0,0.0003403]
[1617322669205,2.957991,58771.0,58770.0,0.0003403]
[1617322669808,3.213352,58771.0,58770.0,0.0003403]
[1617322670009,3.94905957,58771.0,58770.0,0.0003403]
[1617322670204,3.213352,58771.0,58770.0,0.0003403]
[1617322670409,3.94905957,58771.0,58770.0,0.0003403]
[1617322671407,3.213352,58771.0,58770.0,0.0003403]
[1617322673508,3.94905957,58771.0,58770.0,0.0003403]
[1617322673934,3.213352,58771.0,58770.0,0.0003403]
[1617322674133,4.10605957,58771.0,58770.0,0.0003403]
[1617322674333,3.213352,58771.0,58770.0,0.0003403]
[1617322675135,1.31377787,58771.0,58770.0,0.05067491]
[1617322675339,0.813352,58771.0,58770.0,0.0003403]
[1617322675541,0.388991,58771.0,58770.0,0.0003403]
[1617322675739,0.388991,58771.0,58770.0,0.3334003]
[1617322677354,0.388991,58771.0,58770.0,0.0003403]
[1617322677559,0.65250244,58771.0,58770.0,0.0003403]
[1617322677757,1.79250244,58771.0,58770.0,0.0003403]
[1617322677953,2.09750244,58771.0,58770.0,0.0003403]
[1617322678152,0.74505026,58771.0,58770.0,0.0003403]
[1617322678353,0.44005026,58771.0,58770.0,0.0003403]
[1617322679790,2.39005026,58771.0,58770.0,0.0003403]
[1617322680590,2.81005026,58771.0,58770.0,0.0003403]
[1617322680791,0.44005026,58771.0,58770.0,0.0003403]
[1617322681393,0.388991,58771.0,58770.0,0.0003403]
[1617322682689,1.56194247,58771.0,58770.0,0.0003403]
[1617322682890,1.90705529,58771.0,58770.0,0.0003403]
[1617322683295,1.693991,58771.0,58770.0,0.0003403]
[1617322683689,2.683991,58771.0,58770.0,0.0003403]
[1617322684689,3.024475,58771.0,58770.0,0.0003403]
[1617322684886,2.034475,58771.0,58770.0,0.0003403]
[1617322685692,3.024475,58771.0,58770.0,0.0003403]
[1617322685887,3.07596333,58771.0,58770.0,0.0003403]
[1617322686088,2.08596333,58771.0,58770.0,0.0003403]
[1617322686488,2.034475,58771.0,58770.0,0.0003403]
[1617322686891,1.934475,58771.0,58770.0,0.0003403]
[1617322687491,0.974475,58771.0,58770.0,0.0003403]
[1617322688294,0.889341,58771.0,58770.0,0.0003403]
[1617322688492,0.989341,58771.0,58770.0,0.0003403]
[1617322688691,1.419341,58771.0,58770.0,0.0003403]
[1617322689693,0.889341,58771.0,58770.0,0.0003403]
[1617322690493,0.989341,58771.0,58770.0,0.0003403]
[1617322690694,1.479341,58771.0,58770.0,0.0003403]
[1617322692506,1.379341,58771.0,58770.0,0.0003403]
[1617322692906,0.889341,58771.0,58770.0,0.0003403]
[1617322695634,0.989341,58771.0,58770.0,0.0003403]
[1617322697034,0.889341,58771.0,58770.0,0.0003403]
[1617322697557,0.989341,58771.0,58770.0,0.0003403]
[1617322698156,0.99034228,58771.0,58770.0,0.0003403]
[1617322698355,1.09633246,58771.0,58770.0,0.0003403]
[1617322698566,2.389341,58771.0,58770.0,0.0003403]
[1617322698757,2.289341,58771.0,58761.0,0.0357]
[1617322698958,0.388991,58766.0,58761.0,0.0357]
[1617322699158,1.948991,58762.0,58761.0,0.0357]
[1617322699360,2.204373,58762.0,58761.0,0.0357]
[1617322699555,0.644373,58762.0,58761.0,0.0357]
[1617322699755,0.639373,58762.0,58761.0,0.0357]
[1617322700617,2.73035834,58762.0,58761.0,0.0357]
[1617322700814,3.37435834,58762.0,58761.0,0.0357]
[1617322701010,3.323373,58762.0,58761.0,0.0357]
[1617322701413,3.36261124,58762.0,58761.0,0.0357]
[1617322701613,3.19602576,58762.0,58761.0,0.0357]
[1617322701815,3.394264,58762.0,58761.0,0.0357]
[1617322702412,3.394264,58762.0,58761.0,0.02715501]
[1617322702612,1.94,58761.0,58753.0,0.00022]
[1617322702812,1.07604847,58760.0,58753.0,0.00022]
[1617322703017,0.340574,58756.0,58753.0,0.00022]
[1617322703214,0.389136,58754.0,58753.0,0.00022]
[1617322703417,0.489136,58754.0,58753.0,0.00022]
[1617322703817,0.88064382,58754.0,58753.0,0.00022]
[1617322704213,0.78064382,58754.0,58753.0,0.00022]
[1617322704412,0.489136,58754.0,58753.0,0.00022]
[1617322704613,0.389136,58754.0,58753.0,0.00022]
[1617322705639,0.78064382,58754.0,58753.0,0.00022]
[1617322706443,0.389136,58754.0,58753.0,0.00022]
[1617322706646,0.559136,58754.0,58753.0,0.00022]
[1617322708468,0.17,58754.0,58753.0,0.55956]
[1617322708670,0.17,58754.0,58753.0,0.45956]
[1617322708870,0.17,58762.0,58753.0,0.81983096]
[1617322709069,0.389136,58761.0,58753.0,0.81983096]
[1617322709464,0.389136,58759.0,58753.0,0.52931]
[1617322709866,0.1,58758.0,58753.0,0.52931]
[1617322710067,0.2554,58757.0,58753.0,0.52931]
[1617322710265,0.389136,58756.0,58753.0,0.45956]
[1617322710688,0.1,58755.0,58753.0,0.45956]
[1617322710891,0.389136,58756.0,58753.0,0.45956]
[1617322711288,0.1,58755.0,58753.0,0.45956]
[1617322711488,1.859136,58754.0,58753.0,0.45956]
[1617322711889,0.389136,58754.0,58753.0,0.45956]
[1617322712088,0.489136,58754.0,58753.0,0.45956]
[1617322712965,0.389136,58754.0,58753.0,0.45956]
[1617322713208,0.255407,58755.0,58753.0,0.45956]
[1617322713364,1.969136,58754.0,58753.0,0.45956]
[1617322713562,1.969136,58754.0,58753.0,0.00022]
[1617322713563,0.764136,58754.0,58753.0,0.00022]
[1617322714563,1.05465696,58754.0,58707.0,0.61222381]
[1617322714765,0.25544,58747.0,58741.0,0.004]
[1617322714966,0.25544,58747.0,58735.0,0.393336]
[1617322715163,0.25544,58747.0,58736.0,0.26429243]
[1617322715363,0.25544,58747.0,58737.0,0.09687971]
[1617322715565,0.25544,58747.0,58738.0,0.47429243]
[1617322715763,0.25544,58747.0,58739.0,0.65342843]
[1617322715961,0.25544,58747.0,58740.0,0.26429243]
[1617322716164,0.25544,58747.0,58741.0,0.389136]
[1617322716363,0.25544,58747.0,58742.0,0.26429243]
[1617322716565,0.00303724,58755.0,58743.0,0.389136]
[1617322716765,0.5,58755.0,58743.0,0.26429243]
[1617322717164,0.389136,58754.0,58741.0,0.26429243]
[1617322717364,0.155,58753.0,58741.0,0.26429243]
[1617322717567,0.25543,58750.0,58741.0,0.26429243]
[1617322717967,0.25543,58750.0,58740.0,0.26829243]
[1617322718167,0.25543,58750.0,58740.0,0.26429243]
[1617322718368,0.25543,58750.0,58735.0,0.26429243]
[1617322718569,0.135,58749.0,58735.0,0.26869243]
[1617322718771,0.255443,58747.0,58736.0,0.26429243]
[1617322718970,0.255443,58747.0,58739.0,0.157]
[1617322719172,0.255443,58747.0,58741.0,0.389136]
[1617322719371,0.340573,58756.0,58741.0,0.389136]
[1617322719573,0.389136,58754.0,58740.0,0.0048]
[1617322719771,0.00303724,58753.0,58740.0,0.0048]
[1617322719971,0.00503724,58753.0,58741.0,0.26429243]
[1617322720171,0.00503724,58753.0,58740.0,0.26909243]
[1617322720369,0.00503724,58753.0,58741.0,0.26429243]
[1617322720571,0.00503724,58753.0,58740.0,0.26909243]
[1617322720771,0.5,58754.0,58741.0,0.55236835]
[1617322720975,0.5,58754.0,58742.0,0.26429243]
[1617322721189,0.5,58754.0,58744.0,0.0044]
[1617322721392,0.5,58754.0,58745.0,0.26429243]
[1617322721588,0.5,58754.0,58746.0,0.16]
[1617322721786,0.39150782,58758.0,58747.0,0.55236835]
[1617322721987,0.5,58759.0,58747.0,0.26429243]
[1617322722191,0.5,58759.0,58748.0,0.0042]
[1617322722388,0.389136,58758.0,58748.0,0.0042]
[1617322722591,0.539136,58758.0,58748.0,0.0042]
[1617322723822,0.5,58759.0,58748.0,0.0042]
[1617322724020,0.389136,58757.0,58748.0,0.0042]
[1617322724423,0.389136,58757.0,58741.0,0.28807592]
[1617322724622,0.255411,58754.0,58742.0,0.0042]
[1617322725222,0.255411,58754.0,58734.0,0.13622059]
[1617322725223,0.51003592,58753.0,58733.0,1.07736314]
[1617322725421,0.002,58751.0,58734.0,0.26849243]
[1617322725625,0.002,58751.0,58735.0,0.65342843]
[1617322725821,0.002,58751.0,58736.0,0.26429243]
[1617322726023,0.002,58751.0,58740.0,0.0052]
[1617322726221,0.002,58757.0,58741.0,0.389136]
[1617322726443,0.255438,58748.0,58741.0,0.389136]
[1617322726644,0.255438,58748.0,58742.0,0.389182]
[1617322726645,1.21,58747.0,58742.0,0.389182]
[1617322726845,1.21,58747.0,58738.0,0.26429243]
[1617322727042,1.21,58747.0,58738.0,0.03964644]
[1617322727243,1.21,58747.0,58739.0,0.09690902]
[1617322727723,0.16,58746.0,58737.0,0.03965404]
[1617322728134,0.255447,58745.0,58740.0,0.09685117]
[1617322728321,0.255447,58745.0,58737.0,0.13650289]
[1617322728524,0.255447,58745.0,58737.0,0.03965404]
[1617322728723,0.255447,58745.0,58738.0,0.09684314]
[1617322728962,0.255447,58745.0,58739.0,0.389182]
[1617322729162,0.255447,58745.0,58739.0,0.48601471]
[1617322729364,0.255447,58745.0,58740.0,0.29013992]
[1617322729567,0.255447,58745.0,58741.0,0.58925092]
[1617322729768,0.255447,58745.0,58741.0,0.39593072]
[1617322730165,0.255447,58745.0,58742.0,0.09681591]
[1617322730364,0.255447,58745.0,58743.0,0.389153]
[1617322730564,0.255447,58745.0,58744.0,0.09681034]
[1617322730763,0.3061047,58745.0,58744.0,0.21091434]
[1617322730965,0.0506577,58745.0,58744.0,0.21091434]
[1617322731363,0.0506577,58745.0,58744.0,0.114104]
[1617322732398,0.17,58756.0,58744.0,0.114104]
[1617322732602,0.389185,58755.0,58741.0,0.002]
[1617322732811,0.25542,58753.0,58745.0,0.09667144]
[1617322733004,0.25542,58753.0,58742.0,0.09665605]
[1617322733600,0.3068679,58753.0,58742.0,0.09665605]
[1617322734416,0.30990514,58753.0,58742.0,0.09665605]
[1617322734616,0.3068679,58753.0,58742.0,0.09665605]
[1617322734817,0.25542,58753.0,58742.0,0.09665605]
[1617322735016,0.75542,58753.0,58742.0,0.09665605]
[1617322735221,0.5,58753.0,58742.0,0.36094848]
[1617322735422,0.5,58753.0,58744.0,0.164]
[1617322735624,0.5,58753.0,58745.0,0.26429243]
[1617322735820,0.5,58753.0,58745.0,0.36092905]
[1617322736017,0.5,58753.0,58746.0,0.36101003]
[1617322736219,0.30303724,58759.0,58746.0,0.0987176]
[1617322736425,0.30303724,58759.0,58746.0,0.002]
[1617322736426,0.05121785,58759.0,58746.0,0.002]
[1617322736624,0.05121785,58759.0,58746.0,0.25738]
[1617322736837,0.17,58761.0,58746.0,0.25738]
[1617322736838,0.17,58761.0,58747.0,0.285]
[1617322737236,0.17,58761.0,58746.0,0.002]
[1617322737843,0.00100165,58762.0,58746.0,0.002]
[1617322738035,0.00403889,58762.0,58746.0,0.002]
[1617322738436,0.25941489,58762.0,58746.0,0.002]
[1617322738639,0.00100214,58760.0,58746.0,0.002]
[1617322738836,0.004,58759.0,58746.0,0.002]
[1617322739040,0.004,58759.0,58747.0,0.389185]
[1617322739240,0.004,58759.0,58746.0,0.002]
[1617322739677,0.255406,58754.0,58746.0,0.002]
[1617322739879,0.255406,58754.0,58747.0,0.389185]
[1617322740281,0.255406,58754.0,58748.0,0.09671872]
[1617322740486,0.22743069,58753.0,58741.0,0.04153965]
[1617322740686,0.255406,58754.0,58741.0,0.03953965]
[1617322740687,0.255433,58748.0,58741.0,0.03953965]
[1617322740882,0.255433,58748.0,58739.0,0.03955897]
[1617322741078,0.259433,58748.0,58740.0,0.389185]
[1617322741483,0.255433,58748.0,58741.0,0.09679401]
[1617322741681,0.255433,58748.0,58742.0,0.114096]
[1617322741886,0.34056,58757.0,58742.0,0.37838843]
[1617322741887,0.255415,58752.0,58742.0,0.37838843]
[1617322742114,0.34056,58757.0,58742.0,0.37838843]
[1617322742115,0.00403944,58758.0,58743.0,0.38597395]
[1617322742313,0.00303724,58758.0,58744.0,0.09676285]
[1617322743768,0.25842524,58758.0,58743.0,0.39178395]
[1617322743970,0.589185,58757.0,58743.0,0.13639595]
[1617322744170,0.0044,58754.0,58745.0,0.09687456]
[1617322744368,0.0044,58754.0,58743.0,0.0969416]
[1617322744565,0.0044,58754.0,58741.0,0.03962031]
[1617322744768,0.0044,58754.0,58744.0,0.09706868]
[1617322744966,0.255432,58748.0,58744.0,0.09706868]
[1617322745169,0.255432,58748.0,58741.0,0.03962031]
[1617322745367,0.255432,58748.0,58740.0,0.03967791]
[1617322746368,0.255432,58748.0,58740.0,0.03467791]
[1617322746568,0.255432,58748.0,58741.0,0.09704131]
[1617322746768,0.255432,58748.0,58740.0,0.03467791]
[1617322746970,0.255432,58748.0,58742.0,0.09704153]
[1617322747370,0.255432,58748.0,58740.0,0.03467791]
[1617322749770,0.255432,58748.0,58738.0,0.09704485]
[1617322749968,0.255432,58748.0,58739.0,0.17]
[1617322750171,0.255432,58748.0,58740.0,0.09690896]
[1617322750370,0.255432,58748.0,58739.0,0.09688961]
[1617322750771,0.255432,58748.0,58741.0,0.09685478]
[1617322751370,0.255432,58748.0,58740.0,0.09685452]
[1617322751572,0.255432,58748.0,58738.0,0.09683207]
[1617322751971,0.255432,58748.0,58741.0,0.09681011]
[1617322752174,0.255432,58748.0,58737.0,0.389185]
[1617322752589,0.255432,58748.0,58739.0,0.114124]
[1617322755836,0.255432,58748.0,58738.0,0.09683378]
[1617322756037,0.255432,58748.0,58739.0,0.2867146]
[1617322756237,0.255432,58748.0,58739.0,0.0967146]
[1617322756437,0.255432,58748.0,58734.0,0.002]
[1617322756438,0.255432,58748.0,58740.0,0.0967238]
[1617322756839,0.255432,58748.0,58736.0,0.545185]
[1617322757237,0.255432,58748.0,58737.0,0.09670458]
[1617322757438,0.255432,58748.0,58738.0,0.114133]
[1617322757710,0.255432,58748.0,58737.0,0.09670458]
[1617322757967,0.255432,58748.0,58739.0,0.09662378]
[1617322758155,0.255432,58748.0,58737.0,0.389185]
[1617322758353,0.255432,58748.0,58740.0,0.09712641]
[1617322758552,0.255432,58748.0,58737.0,0.09712801]
[1617322758756,0.255432,58748.0,58741.0,0.09688051]
[1617322759152,0.255432,58748.0,58739.0,0.09687795]
[1617322759356,0.255432,58748.0,58737.0,0.09686631]
[1617322759555,0.255432,58748.0,58740.0,0.09688075]
[1617322759756,0.255432,58748.0,58738.0,0.09687337]
[1617322759954,0.255432,58748.0,58741.0,0.0968647]
[1617322760355,0.255432,58748.0,58739.0,0.09686724]
[1617322760565,0.255432,58748.0,58742.0,0.09686401]
[1617322760768,0.389185,58747.0,58739.0,0.09684863]
[1617322760966,0.389185,58747.0,58743.0,0.09684852]
[1617322761369,0.389185,58747.0,58739.0,0.09684636]
[1617322761567,0.734035,58747.0,58744.0,0.09685243]
[1617322761770,2.195459,58745.0,58740.0,0.09685873]
[1617322761969,2.195459,58745.0,58734.0,0.16526185]
[1617322762367,0.39150782,58744.0,58734.0,0.002]
[1617322762568,0.39150782,58744.0,58736.0,0.389185]
[1617322762766,0.255459,58745.0,58736.0,0.48605681]
[1617322762967,0.255466,58743.0,58737.0,0.09688293]
[1617322763192,0.255466,58743.0,58737.0,0.38688293]
[1617322763393,0.255466,58743.0,58738.0,0.114135]
[1617322763593,0.255466,58743.0,58739.0,0.255]
[1617322763795,0.255466,58743.0,58739.0,0.0968997]
[1617322763996,0.255466,58743.0,58740.0,0.09690216]
[1617322764193,0.255466,58743.0,58735.0,0.09690169]
[1617322764595,0.255466,58743.0,58741.0,0.09690114]
[1617322764795,0.389185,58742.0,58736.0,0.09689895]
[1617322764997,0.389185,58742.0,58732.0,0.00022]
[1617322765195,0.255466,58743.0,58732.0,0.00022]
[1617322765394,0.255466,58743.0,58733.0,0.389185]
[1617322765835,0.255466,58743.0,58734.0,0.0969084]
[1617322766234,0.255466,58743.0,58733.0,0.09683695]
[1617322766436,0.255466,58743.0,58735.0,0.48602606]
[1617322766835,0.340594,58750.0,58735.0,0.48602606]
[1617322767037,0.335594,58750.0,58736.0,0.09683747]
[1617322767433,0.335594,58750.0,58735.0,0.09683104]
[1617322767638,0.00303724,58749.0,58735.0,0.09683104]
[1617322769648,0.25546,58744.0,58735.0,0.09683104]
[1617322770647,0.25546,58744.0,58733.0,0.09683405]
[1617322770848,0.25546,58744.0,58736.0,0.09684667]
[1617322771096,0.25546,58744.0,58734.0,0.09683786]
[1617322771295,0.25546,58744.0,58737.0,0.09684703]
[1617322771695,0.25546,58744.0,58734.0,0.389185]
[1617322772098,0.25546,58744.0,58736.0,0.114154]
[1617322772296,0.25546,58744.0,58735.0,0.09682447]
[1617322772497,0.25546,58744.0,58737.0,0.09681594]
[1617322772753,0.25546,58744.0,58736.0,0.09680501]
[1617322773152,0.25546,58744.0,58738.0,0.09677835]
[1617322773355,0.25546,58744.0,58734.0,0.389185]
[1617322773775,0.25546,58744.0,58735.0,0.09679063]
[1617322774175,0.25546,58744.0,58736.0,0.114154]
[1617322774375,0.25546,58744.0,58735.0,0.09679063]
[1617322774580,0.25546,58744.0,58733.0,0.09677775]
[1617322774780,0.25546,58744.0,58734.0,0.389185]
[1617322775175,0.25546,58744.0,58735.0,0.0967234]
[1617322775373,0.25546,58744.0,58736.0,0.114154]
[1617322775775,0.004,58747.0,58737.0,0.09666071]
[1617322775975,0.25544,58748.0,58737.0,0.09666071]
[1617322776398,0.25544,58748.0,58735.0,0.09664034]
[1617322776799,0.25544,58748.0,58735.0,0.3940984]
[1617322777202,0.25544,58748.0,58736.0,0.09653201]
[1617322777399,0.25544,58748.0,58733.0,0.09649568]
[1617322777798,0.25544,58748.0,58736.0,0.255434]
[1617322778000,0.25544,58748.0,58737.0,0.0965851]
[1617322780023,0.25544,58748.0,58736.0,0.255434]
[1617322780426,0.25544,58748.0,58737.0,0.09668261]
[1617322781425,0.25544,58748.0,58734.0,0.389185]
[1617322781852,0.25544,58748.0,58735.0,0.2466768]
[1617322782054,0.25544,58748.0,58736.0,0.3609699]
[1617322782254,0.25544,58748.0,58736.0,0.09667747]
[1617322783859,0.25544,58748.0,58735.0,0.09681645]
[1617322784056,0.25544,58748.0,58737.0,0.09680609]
[1617322784284,0.25544,58748.0,58735.0,0.25781798]
[1617322784486,0.0075,58750.0,58738.0,0.09681702]
[1617322784886,0.0075,58750.0,58736.0,0.24389856]
[1617322785091,0.0075,58750.0,58739.0,0.09687563]
[1617322785292,0.0075,58750.0,58737.0,0.09687195]
[1617322785887,0.0075,58750.0,58736.0,0.145]
[1617322786087,0.01053724,58750.0,58734.0,0.255439]
[1617322786288,0.01053724,58750.0,58735.0,0.0968835]
[1617322786687,0.262927,58750.0,58736.0,0.255427]
[1617322786905,0.262927,58750.0,58737.0,0.09687474]
[1617322787506,0.28919158,58749.0,58737.0,0.09687474]
[1617322788005,0.262927,58750.0,58737.0,0.09687474]
[1617322790229,0.262927,58750.0,58738.0,0.255418]
[1617322790431,0.262927,58750.0,58739.0,0.09686996]
[1617322791229,0.389185,58749.0,58736.0,0.09685048]
[1617322792051,0.262927,58750.0,58736.0,0.09685048]
[1617322792252,0.262927,58750.0,58736.0,0.06685048]
[1617322792450,0.262927,58750.0,58737.0,0.09639024]
[1617322793650,0.262927,58750.0,58736.0,0.09662521]
[1617322794052,0.262927,58750.0,58738.0,0.09663815]
[1617322794251,0.262927,58750.0,58736.0,0.09663681]
[1617322794450,0.262927,58750.0,58739.0,0.09662571]
[1617322794681,0.262927,58750.0,58736.0,0.09662678]
[1617322794881,0.262927,58750.0,58740.0,0.09662768]
[1617322795082,0.389185,58749.0,58740.0,0.09662768]
[1617322795283,0.255432,58748.0,58736.0,0.09660927]
[1617322795485,0.54768048,58748.0,58736.0,0.09660927]
[1617322795687,0.18,58747.0,58736.0,0.09660927]
[1617322795884,0.0042,58748.0,58736.0,0.09660927]
[1617322796084,0.0042,58748.0,58734.0,0.0866153]
[1617322796484,0.004,58748.0,58734.0,0.0866153]
[1617322796687,0.387163,58748.0,58734.0,0.0866153]
[1617322796885,0.13173,58748.0,58733.0,0.09647079]
[1617322797304,0.13173,58748.0,58735.0,0.09594627]
[1617322797506,0.004,58748.0,58733.0,0.09550064]
[1617322797705,0.004,58748.0,58734.0,0.389185]
[1617322797908,0.004,58748.0,58735.0,0.1653877]
[1617322798106,0.0075,58750.0,58735.0,0.31405393]
[1617322798309,0.0075,58750.0,58736.0,0.114152]
[1617322798508,0.0075,58750.0,58736.0,0.21080254]
[1617322798707,0.0075,58750.0,58737.0,0.26163269]
[1617322798906,0.0075,58750.0,58738.0,0.09663891]
[1617322799923,0.0075,58750.0,58736.0,0.09654363]
[1617322800126,0.0075,58750.0,58737.0,0.209]
[1617322800326,0.262924,58750.0,58737.0,0.209]
[1617322800526,0.262924,58750.0,58738.0,0.09652134]
[1617322800729,0.3139964,58750.0,58738.0,0.09652134]
[1617322801326,0.3139964,58750.0,58737.0,0.09650275]
[1617322801928,0.262924,58750.0,58737.0,0.09650275]
[1617322802329,0.262924,58750.0,58738.0,0.255417]
[1617322802555,0.262924,58750.0,58739.0,0.09649234]
[1617322802836,0.31406282,58750.0,58739.0,0.09649234]
[1617322803038,0.389185,58749.0,58739.0,0.09649234]
[1617322803237,0.389185,58749.0,58736.0,0.09653432]
[1617322803441,0.393185,58749.0,58736.0,0.09653432]
[1617322803836,0.393185,58749.0,58734.0,0.09654758]
[1617322803837,0.255443,58746.0,58734.0,0.09654758]
[1617322804036,0.255443,58746.0,58734.0,0.23154758]
[1617322804236,0.255443,58746.0,58734.0,0.09654758]
[1617322804440,0.255443,58746.0,58735.0,0.09655117]
[1617322804837,0.255443,58746.0,58734.0,0.09653752]
[1617322805479,0.255443,58746.0,58735.0,0.547185]
[1617322805680,0.255443,58746.0,58736.0,0.17]
[1617322805879,0.255443,58746.0,58737.0,0.114144]
[1617322806083,0.255443,58746.0,58737.0,0.21062164]
[1617322806279,0.255443,58746.0,58738.0,0.0964715]
[1617322806479,0.0075,58750.0,58738.0,0.0964715]
[1617322807087,0.0075,58750.0,58739.0,1.00400875]
[1617322807287,0.0075,58750.0,58741.0,0.114105]
[1617322807486,0.0075,58750.0,58741.0,0.47482608]
[1617322807681,0.0075,58750.0,58741.0,0.26053365]
[1617322807909,0.0075,58750.0,58746.0,0.16]
[1617322808105,0.0075,58750.0,58749.0,2.229115]
[1617322808309,0.0075,58750.0,58749.0,2.48448]
[1617322808707,0.0075,58750.0,58749.0,0.64448]
[1617322808909,0.0075,58750.0,58749.0,0.82448]
[1617322812128,0.0075,58750.0,58749.0,0.569114]
[1617322812526,0.0075,58750.0,58749.0,0.389114]
[1617322815154,0.0075,58750.0,58749.0,1.219114]
[1617322815355,0.0075,58750.0,58749.0,0.619114]
[1617322815782,0.05791834,58750.0,58749.0,0.619114]
[1617322817386,0.05791834,58750.0,58749.0,0.775114]
[1617322817587,0.05791834,58750.0,58749.0,0.825114]
[1617322817867,0.05791834,58750.0,58749.0,0.619114]
[1617322819716,0.05791834,58750.0,58749.0,0.9558256]
[1617322819913,0.05791834,58750.0,58749.0,1.1158256]
[1617322820111,0.05791834,58750.0,58749.0,0.829114]
[1617322820511,0.05791834,58750.0,58749.0,0.619114]
[1617322820951,0.0075,58750.0,58749.0,0.619114]
[1617322821350,0.0075,58750.0,58749.0,0.389114]
[1617322821754,0.0075,58750.0,58749.0,0.546114]
[1617322821951,0.058833,58750.0,58749.0,0.546114]
[1617322822552,0.058833,58750.0,58749.0,0.544114]
[1617322822953,0.058833,58750.0,58749.0,0.389114]
[1617322823953,0.058833,58750.0,58749.0,0.369114]
[1617322825355,0.058833,58750.0,58749.0,0.509114]
[1617322825555,0.058833,58750.0,58749.0,0.609114]
[1617322825755,0.058833,58750.0,58749.0,0.509114]
[1617322826786,0.0075,58750.0,58749.0,0.509114]
[1617322827189,0.0075,58750.0,58749.0,0.14]
[1617322827593,2.0375,58750.0,58739.0,1.1046]
[1617322827792,0.67342976,58749.0,58739.0,0.169]
[1617322827990,0.1,58748.0,58731.0,0.00022]
[1617322828191,0.18,58747.0,58732.0,0.00222]
[1617322828392,0.18,58747.0,58739.0,0.00197333]
[1617322828593,0.255446,58746.0,58739.0,0.00197333]
[1617322828803,0.859173,58745.0,58737.0,0.00197433]
[1617322829004,0.6,58744.0,58737.0,0.00197433]
[1617322829404,0.389173,58744.0,58737.0,0.00197433]
[1617322829803,0.255446,58746.0,58737.0,0.00197433]
[1617322830002,0.255446,58746.0,58736.0,0.00197644]
[1617322830205,0.255446,58746.0,58737.0,0.00197673]
[1617322830800,0.389173,58745.0,58737.0,0.00197673]
[1617322831002,0.515,58744.0,58737.0,0.00197673]
[1617322831201,0.389173,58743.0,58737.0,0.00197673]
[1617322831630,0.255455,58744.0,58737.0,0.00197673]
[1617322831834,0.127726,58747.0,58738.0,0.1]
[1617322832035,0.39150782,58749.0,58738.0,0.41231259]
[1617322832237,0.0075,58750.0,58740.0,0.489173]
[1617322832433,0.0075,58750.0,58740.0,0.38425676]
[1617322832627,0.0075,58750.0,58740.0,0.28425676]
[1617322832925,0.0075,58750.0,58739.0,0.21197622]
[1617322833125,0.0075,58750.0,58741.0,0.135]
[1617322833325,0.0075,58750.0,58737.0,0.00197389]
[1617322833928,0.0075,58750.0,58745.0,0.00197558]
[1617322833929,0.25544,58748.0,58745.0,0.00197558]
[1617322834157,0.389173,58747.0,58745.0,0.00197558]
[1617322834355,2.319173,58746.0,58745.0,0.00197558]
[1617322834758,2.03,58745.0,58744.0,0.00197921]
[1617322834954,2.319173,58745.0,58744.0,0.00197921]
[1617322835357,2.789173,58745.0,58744.0,0.00197921]
[1617322835558,1.114627,58745.0,58744.0,0.00197921]
[1617322835755,0.859173,58745.0,58744.0,0.00197921]
[1617322835955,0.389173,58745.0,58744.0,0.00197921]
[1617322836989,0.389173,58745.0,58743.0,0.0019825]
[1617322837392,0.389173,58745.0,58739.0,0.1]